fUSD/lending_fUSD_20260115
["ID","MTS","AMOUNT","RATE_DAILY","PERIOD"]
[402098372,1768517850351,-430.87421134,0.00016026,2]
[402098373,1768517853561,-222.55405972,0.00016025,2]
[402098374,1768517854698,500.0,0.00015894,2]
[402098375,1768517855876,-166.3969028,0.00016025,2]
[402098376,1768517857353,-188.2704024,0.00016025,2]
[402098377,1768517867456,-272.48385359,0.00016025,2]
[402098378,1768517868130,500.0,0.00015894,2]
[402098379,1768517869635,-348.22695476,0.00016025,2]
[402098380,1768517869673,-101.31827991,0.00016026,2]
[402098381,1768517870365,500.0,0.00015894,2]
[402098382,1768517871640,-580.43958364,0.00016026,2]
[402098383,1768517873654,-236.43861474,0.00016026,2]
[402098384,1768517878029,-167.53649286,0.00016026,2]
[402098385,1768517880250,-269.40144431,0.00016026,2]
[402098386,1768517901624,-300.0,0.00016025,2]
[402098387,1768517901648,-0.08343105,0.00016025,2]
[402098388,1768517903375,-228.49100707,0.00016025,2]
[402098389,1768517905530,-151.44698312,0.00016025,2]
[402098390,1768517907127,-416.16808016,0.00016025,2]
[402098391,1768517909773,-39.95615206,0.00016025,2]
[402098392,1768517909804,-123.25874974,0.00016025,2]
[402098393,1768517911422,-160.74125026,0.00016025,2]
[402098394,1768517911459,-138.39548849,0.00016026,2]
[402098395,1768517914499,-213.76484755,0.00016026,2]
[402098396,1768517917777,-314.78249771,0.00016026,2]
[402098397,1768517919444,-187.12878608,0.00016026,2]
[402098398,1768517922655,-205.61761512,0.00016026,2]
[402098399,1768517925020,-291.60566457,0.00016026,2]
[402098400,1768517927048,-353.4292233,0.00016026,2]
[402098401,1768517928622,-195.20792808,0.00016026,2]
[402098402,1768517933181,245.31080488,0.00015933,2]
[402098403,1768517933481,-255.45763339,0.00016026,2]
[402098404,1768517935578,-339.99034029,0.00016026,2]
[402098405,1768517942457,-444.87245293,0.00016026,2]
[402098406,1768517948225,-203.2415936,0.00016026,2]
[402098407,1768517949757,-188.22892037,0.00016026,2]
[402098408,1768517950002,500.0,0.00015894,2]
[402098409,1768517952561,-219.13058045,0.00016026,2]
[402098410,1768517954142,-264.87733376,0.00016026,2]
[402098411,1768517957855,-200.32500541,0.00016026,2]
[402098412,1768517960060,-289.87338139,0.00016026,2]
[402098413,1768517962904,-205.70916156,0.00016026,2]
[402098415,1768517984879,500.0,0.00015926,2]
[402098416,1768517985372,500.0,0.00015894,2]
[402098417,1768517985802,-239.4728328,0.00016026,2]
[402098418,1768517987880,-253.02020895,0.00016026,2]
[402098420,1768517990526,-246.97979105,0.00016026,2]
[402098421,1768517993905,-294.29083844,0.00016026,2]
[402098422,1768517997285,-231.34160624,0.00016026,2]
[402098423,1768518000999,-208.5176781,0.00016026,2]
[402098424,1768518003079,-204.44184569,0.00016025,2]
[402098425,1768518007199,-390.46187134,0.00016025,2]
[402098426,1768518007417,8244.81690079,0.0001593,2]
[402098427,1768518008820,-210.12661861,0.00016025,2]
[402098428,1768518011120,-181.15006945,0.00016025,2]
[402098429,1768518013847,-175.76184302,0.00016016,2]
[402098430,1768518015385,-20.19815698,0.00016016,2]
[402098431,1768518015411,-195.96,0.00016016,2]
[402098432,1768518015435,-111.60500844,0.00016016,2]
[402098433,1768518016936,-84.35499156,0.00016016,2]
[402098434,1768518016963,-75.65466815,0.00016025,2]
[402098435,1768518018462,-138.16492676,0.00016025,2]
[402098436,1768518018487,-423.39519838,0.00016025,2]
[402098437,1768518023453,-126.60480162,0.00016025,2]
[402098438,1768518023478,-124.01618657,0.00016026,2]
[402098439,1768518026035,-159.98381343,0.00016026,2]
[402098440,1768518026062,-51.88402608,0.00016026,2]
[402098441,1768518029681,-148.11597392,0.00016026,2]
[402098442,1768518029717,-294.56478155,0.00016026,2]
[402098443,1768518031577,516.93688148,0.00015894,2]
[402098444,1768518031761,-189.42140639,0.00016026,2]
[402098445,1768518033849,-178.67630316,0.00016026,2]
[402098446,1768518038320,-197.81099955,0.00016026,2]
[402098447,1768518041921,-226.62461992,0.00016026,2]
[402098448,1768518043524,-403.17621516,0.00016026,2]
[402098449,1768518045997,1238.25621773,0.00015871,2]
[402098450,1768518046025,4018.39378227,0.00015871,2]
[402098451,1768518048296,-170.23876717,0.00016026,2]
[402098452,1768518049872,-266.23496268,0.00016026,2]
[402098453,1768518054683,-433.72543507,0.00016026,2]
[402098454,1768518071314,5667.85608784,0.0001593,2]
[402098455,1768518075067,163.5405366,0.0001593,2]
[402098456,1768518082856,9836.4694634,0.0001583,2]
[402098457,1768518082884,10000.01,0.0001583,2]
[402098458,1768518082912,10000.01,0.0001583,2]
[402098459,1768518082941,10000.01,0.0001583,2]
[402098460,1768518082969,10000.01,0.0001583,2]
[402098461,1768518083002,10000.01,0.0001583,2]
[402098462,1768518083033,10000.01,0.0001583,2]
[402098463,1768518083063,10000.01,0.0001583,2]
[402098464,1768518083092,10000.01,0.0001583,2]
[402098465,1768518083121,10000.01,0.0001583,2]
[402098466,1768518095065,-161.642,0.00015706,2]
[402098467,1768518095103,-1682.787,0.00015706,2]
[402098468,1768518095512,-7823.33851884,0.0001583,2]
[402098469,1768518095724,-10000.01,0.0001583,2]
[402098470,1768518095780,-10000.01,0.0001583,2]
[402098471,1768518095920,-10000.01,0.0001583,2]
[402098472,1768518096370,-10000.01,0.0001583,2]
[402098473,1768518096541,-198.22798224,0.0001583,2]
[402098474,1768518096571,-9603.55403552,0.0001583,2]
[402098475,1768518101376,3456.84,0.0001583,2]
[402098476,1768518143533,500.0,0.00015894,2]
[402098477,1768518181083,709.91,0.00015663,2]
[402098478,1768518194850,1024.44903,0.00030137,120]
[402098479,1768518208351,800.354342,0.00015846,2]
[402098480,1768518210432,500.0,0.00015894,2]
[402098481,1768518248542,500.0,0.00015894,2]
[402098482,1768518254047,500.0,0.00015894,2]
[402098483,1768518323152,500.0,0.00015894,2]
[402098484,1768518418459,150.0,0.0003,120]
[402098523,1768518455905,152.92,0.00019178,30]
[402098575,1768518521050,3400.85,0.00015269,2]
[402099151,1768518574938,500.0,0.00015894,2]
[402099283,1768518581891,1500.0,0.00015279,2]
[402099581,1768518604869,242.80131574,0.00030136,120]
[402099638,1768518608573,500.0,0.00015894,2]
[402099957,1768518632074,-2083.5064752,0.00015924,2]
[402099958,1768518632086,-1126.61412583,0.00015924,2]
[402099959,1768518632124,-638.67352101,0.00015924,2]
[402099960,1768518632175,-72786.31296341,0.00015924,2]
[402099961,1768518632218,-1659.78841062,0.00015924,2]
[402099962,1768518632229,-10019.86684707,0.00015924,2]
[402099963,1768518632269,-149037.99664454,0.00015924,2]
[402100034,1768518638160,-530.05011995,0.00015924,2]
[402100035,1768518638201,-2947.80744003,0.00015924,2]
[402100036,1768518638212,-881.10560647,0.00015924,2]
[402100037,1768518638224,-2598.56757777,0.00015924,2]
[402100038,1768518638235,-11563.78439971,0.00015924,2]
[402100040,1768518638247,-1611.51836,0.00015924,2]
[402100041,1768518638259,-21169.33942649,0.00015924,2]
[402100042,1768518638275,-721345.0680819,0.00015924,2]
[402100043,1768518638285,-1200.0,0.00015925,2]
[402100044,1768518638295,-283.0,0.00015925,2]
[402100045,1768518638305,-300.0,0.00015925,2]
[402100047,1768518638319,-250.0,0.00015925,2]
[402100048,1768518638329,-195.0,0.00015926,2]
[402100049,1768518638339,-192.58953896,0.00015926,2]
[402100050,1768518638350,-500.0,0.00015926,2]
[402100051,1768518638360,-226.5854873,0.00015926,2]
[402100053,1768518638370,-250.0,0.00015927,2]
[402100054,1768518638380,-1200.0,0.00015928,2]
[402100055,1768518638390,-300.0,0.00015929,2]
[402100056,1768518638400,-278.0,0.00015929,2]
[402100057,1768518638410,-300.0,0.00015929,2]
[402100058,1768518638420,-13073.10209816,0.0001593,2]
[402100060,1768518638430,-5279.10898115,0.0001593,2]
[402100061,1768518638440,-163.54053658,0.0001593,2]
[402100062,1768518638451,-346.96471887,0.00016014,2]
[402100063,1768518638461,-200.8402435,0.00016014,2]
[402100064,1768518638470,-500.0,0.00016014,2]
[402100065,1768518638480,-304.01987991,0.00016014,2]
[402100066,1768518638491,-500.0,0.00016014,2]
[402100067,1768518638500,-96858.21367981,0.00016015,2]
[402100068,1768518638511,-298.96994241,0.00016015,2]
[402100069,1768518638521,-550.0,0.00016015,2]
[402100070,1768518638531,-214.8,0.00016016,2]
[402100071,1768518638541,-151.0,0.00016016,2]
[402100072,1768518638552,-151.0,0.00016016,2]
[402100073,1768518638562,-151.0,0.00016016,2]
[402100075,1768518638572,-151.0,0.00016016,2]
[402100076,1768518638582,-151.0,0.00016016,2]
[402100077,1768518638592,-151.0,0.00016016,2]
[402100078,1768518638602,-151.0,0.00016016,2]
[402100079,1768518638612,-151.0,0.00016016,2]
[402100080,1768518638622,-151.0,0.00016016,2]
[402100081,1768518638631,-151.0,0.00016016,2]
[402100082,1768518638641,-151.0,0.00016016,2]
[402100083,1768518638650,-200.0,0.00016016,2]
[402100084,1768518638659,-301.69227512,0.00016016,2]
[402100085,1768518638669,-500.0,0.00016016,2]
[402100087,1768518638678,-3255.06,0.00016024,2]
[402100088,1768518638688,-9432.58,0.00016024,2]
[402100089,1768518638698,-150.99,0.00016024,2]
[402100090,1768518638707,-3128.71,0.00016024,2]
[402100091,1768518638717,-500.0,0.00016025,2]
[402100092,1768518638726,-500.0,0.00016025,2]
[402100093,1768518638736,-500.0,0.00016025,2]
[402100094,1768518638747,-500.0,0.00016025,2]
[402100095,1768518638757,-500.0,0.00016025,2]
[402100097,1768518638767,-287.08897924,0.00016025,2]
[402100098,1768518638777,-500.0,0.00016025,2]
[402100099,1768518638787,-500.0,0.00016025,2]
[402100100,1768518638796,-500.0,0.00016025,2]
[402100101,1768518638806,-43598.77083837,0.00016025,2]
[402100102,1768518638816,-500.0,0.00016025,2]
[402100103,1768518638825,-500.0,0.00016025,2]
[402100104,1768518638835,-500.0,0.00016025,2]
[402100105,1768518638845,-500.0,0.00016025,2]
[402100106,1768518638854,-500.0,0.00016025,2]
[402100107,1768518638864,-500.0,0.00016025,2]
[402100109,1768518638873,-500.0,0.00016025,2]
[402100110,1768518638883,-500.0,0.00016025,2]
[402100111,1768518638892,-500.0,0.00016025,2]
[402100112,1768518638902,-500.0,0.00016025,2]
[402100113,1768518638912,-500.0,0.00016025,2]
[402100114,1768518638921,-244.28449642,0.00016025,2]
[402100115,1768518638931,-1159.19,0.00016025,2]
[402100116,1768518638941,-500.0,0.00016025,2]
[402100117,1768518638950,-546.11438296,0.00016025,2]
[402100118,1768518638960,-999.99,0.00016026,2]
[402100119,1768518638973,-9999.99,0.00016026,2]
[402100120,1768518638983,-299.99,0.0001603,2]
[402100121,1768518638992,-7104.14,0.0001603,2]
[402100122,1768518639003,-154.70347521,0.0001603,2]
[402100123,1768518639014,-1959.9,0.00016121,2]
[402100124,1768518639024,-31344.21914039,0.00016154,2]
[402100125,1768518639034,-1000.0,0.00016154,2]
[402100126,1768518639044,-166.66,0.00016176,2]
[402100127,1768518639054,-200.0,0.00016186,2]
[402100128,1768518639063,-500.0,0.00016253,2]
[402100129,1768518639072,-500.0,0.00016253,2]
[402100130,1768518639082,-500.0,0.00016253,2]
[402100131,1768518639093,-566.60097493,0.00016253,2]
[402100133,1768518639103,-398.26454117,0.00016254,2]
[402100134,1768518639113,-1159.19,0.00016299,2]
[402100135,1768518639122,-200.0,0.00016348,2]
[402100136,1768518639131,-447.79190405,0.00016354,2]
[402100137,1768518639141,-500.0,0.00016354,2]
[402100138,1768518639150,-500.0,0.00016354,2]
[402100139,1768518639160,-500.0,0.00016354,2]
[402100140,1768518639169,-500.0,0.00016354,2]
[402100141,1768518639178,-500.0,0.00016354,2]
[402100143,1768518639188,-500.0,0.00016354,2]
[402100144,1768518639197,-500.0,0.00016354,2]
[402100145,1768518639207,-500.0,0.00016354,2]
[402100146,1768518639216,-500.0,0.00016354,2]
[402100147,1768518639226,-500.0,0.00016354,2]
[402100149,1768518639235,-500.0,0.00016354,2]
[402100150,1768518639244,-500.0,0.00016354,2]
[402100152,1768518639254,-4472.97781007,0.00016462,2]
[402100154,1768518639263,-161.75279423,0.00016512,2]
[402100156,1768518639273,-166.66,0.00016516,2]
[402100158,1768518639282,-151.0,0.00016541,2]
[402100160,1768518639291,-151.0,0.00016542,2]
[402100162,1768518639300,-151.0,0.00016552,2]
[402100164,1768518639311,-151.0,0.00016555,2]
[402100166,1768518639321,-151.0,0.00016555,2]
[402100168,1768518639330,-151.0,0.00016559,2]
[402100170,1768518639339,-151.0,0.00016559,2]
[402100172,1768518639349,-500.0,0.00016561,2]
[402100174,1768518639359,-505.71386922,0.00016561,2]
[402100176,1768518639368,-500.0,0.00016561,2]
[402100178,1768518639377,-500.0,0.00016561,2]
[402100180,1768518639387,-109147.0,0.00016562,2]
[402100182,1768518639397,-248.72844434,0.00016564,2]
[402100184,1768518639408,-500.0,0.00016564,2]
[402100186,1768518639417,-1159.19,0.00016573,2]
[402100188,1768518639427,-172.71,0.00016712,2]
[402100189,1768518639437,-1159.19,0.00016847,2]
[402100190,1768518639447,-166.66,0.00016857,2]
[402100191,1768518639456,-1959.9,0.00016927,2]
[402100192,1768518639466,-500.0,0.00016932,2]
[402100193,1768518639475,-500.0,0.00016973,2]
[402100194,1768518639485,-500.0,0.00016973,2]
[402100195,1768518639494,-500.0,0.00016973,2]
[402100196,1768518639506,-500.0,0.00016973,2]
[402100197,1768518639516,-500.0,0.00016973,2]
[402100198,1768518639525,-500.0,0.00016973,2]
[402100199,1768518639535,-500.0,0.00016973,2]
[402100200,1768518639546,-504.80086081,0.00016973,2]
[402100201,1768518639556,-500.0,0.00016973,2]
[402100202,1768518639566,-500.0,0.00016973,2]
[402100203,1768518639575,-500.0,0.00016973,2]
[402100204,1768518639584,-500.0,0.00016973,2]
[402100206,1768518639594,-500.0,0.00016973,2]
[402100208,1768518639604,-500.0,0.00017112,2]
[402100210,1768518639614,-1159.19,0.00017121,2]
[402100212,1768518639624,-935.0,0.00017136,2]
[402100214,1768518639633,-166.66,0.00017197,2]
[402100216,1768518639643,-3131.0,0.00017267,2]
[402100218,1768518639652,-1159.19,0.00017395,2]
[402100220,1768518639662,-420.0,0.00017417,2]
[402100222,1768518639672,-3131.0,0.00017429,2]
[402100224,1768518639682,-183.47,0.00017432,2]
[402100225,1768518639692,-500.0,0.00017455,2]
[402100226,1768518639701,-3131.0,0.00017456,2]
[402100227,1768518639711,-1680.0,0.00017503,2]
[402100228,1768518639720,-193.0,0.00017518,2]
[402100229,1768518639730,-195.0,0.00017518,2]
[402100231,1768518639739,-300.0,0.00017518,2]
[402100232,1768518639749,-505.43171428,0.00017518,2]
[402100233,1768518639758,-600.0,0.00017518,2]
[402100234,1768518639767,-250.0,0.00017518,2]
[402100235,1768518639777,-2500.0,0.00017518,2]
[402100236,1768518639786,-300.0,0.00017518,2]
[402100237,1768518639796,-2109.10969539,0.00017518,2]
[402100238,1768518639805,-300.0,0.00017518,2]
[402100239,1768518639816,-600.0,0.00017518,2]
[402100240,1768518639825,-975.81521231,0.00017521,2]
[402100242,1768518639834,-1000.0,0.00017521,2]
[402100243,1768518639843,-500.0,0.00017521,2]
[402100244,1768518639853,-500.0,0.00017521,2]
[402100245,1768518639863,-500.0,0.00017521,2]
[402100246,1768518639872,-1000.0,0.00017521,2]
[402100247,1768518639882,-418.63063862,0.00017521,2]
[402100248,1768518639892,-500.0,0.00017521,2]
[402100249,1768518639902,-685.70785021,0.00017521,2]
[402100250,1768518639911,-1000.0,0.00017521,2]
[402100251,1768518639920,-500.0,0.00017521,2]
[402100253,1768518639932,-166.66,0.00017538,2]
[402100254,1768518639942,-3131.0,0.00017576,2]
[402100255,1768518639951,-500.0,0.0001766,2]
[402100256,1768518639960,-1159.19,0.00017669,2]
[402100257,1768518639972,-1959.9,0.00017733,2]
[402100259,1768518639981,-8690.19,0.00017754,2]
[402100261,1768518639991,-3131.0,0.00017762,2]
[402100262,1768518640000,-3131.0,0.00017781,2]
[402100263,1768518640010,-3131.0,0.00017783,2]
[402100264,1768518640019,-166.66,0.00017879,2]
[402100265,1768518640028,-1159.19,0.00017943,2]
[402100266,1768518640039,-500.0,0.00017973,2]
[402100267,1768518640048,-500.0,0.00017973,2]
[402100268,1768518640057,-500.0,0.00017973,2]
[402100269,1768518640067,-233.81796729,0.00017973,2]
[402100270,1768518640076,-500.0,0.00017973,2]
[402100271,1768518640086,-500.0,0.00017973,2]
[402100272,1768518640095,-500.0,0.00017973,2]
[402100273,1768518640104,-500.0,0.00017973,2]
[402100274,1768518640113,-500.0,0.00017973,2]
[402100275,1768518640123,-500.0,0.00017973,2]
[402100276,1768518640132,-300.0,0.00017973,2]
[402100278,1768518640142,-500.0,0.00017973,2]
[402100279,1768518640151,-500.0,0.00017973,2]
[402100280,1768518640160,-500.0,0.00017973,2]
[402100281,1768518640169,-500.0,0.00017973,2]
[402100283,1768518640179,-3131.0,0.00017979,2]
[402100284,1768518640188,-1600.0,0.00018036,2]
[402100285,1768518640198,-3131.0,0.00018145,2]
[402100286,1768518640208,-3131.0,0.00018166,2]
[402100287,1768518640218,-13073.1020981,0.00018198,2]
[402100288,1768518640228,-5279.10898111,0.00018198,2]
[402100289,1768518640238,-542.41651082,0.00018208,2]
[402100290,1768518640248,-1159.19,0.00018217,2]
[402100291,1768518640257,-3131.0,0.00018242,2]
[402100292,1768518640267,-3131.0,0.00018267,2]
[402100294,1768518640276,-3131.0,0.00018311,2]
[402100295,1768518640285,-3131.0,0.00018334,2]
[402100296,1768518640295,-1589.0,0.00018338,2]
[402100297,1768518640304,-163.54053658,0.00018342,2]
[402100298,1768518640314,-500.0,0.00018355,2]
[402100299,1768518640324,-500.0,0.00018355,2]
[402100300,1768518640333,-88340.9,0.00018356,2]
[402100302,1768518640342,-454.6,0.00018442,2]
[402100303,1768518640352,-1159.19,0.00018491,2]
[402100304,1768518640361,-1000.0,0.00018521,2]
[402100305,1768518640370,-1000.0,0.00018521,2]
[402100306,1768518640380,-3131.0,0.00018522,2]
[402100307,1768518640389,-9999.99,0.00018533,2]
[402100308,1768518640399,-8969.76,0.00018533,2]
[402100309,1768518640408,-1174.96,0.00018533,2]
[402100310,1768518640417,-1959.9,0.00018539,2]
[402100311,1768518640428,-3131.0,0.00018706,2]
[402100312,1768518640437,-3131.0,0.00018758,2]
[402100313,1768518640447,-1159.19,0.00018765,2]
[402100314,1768518640456,-3131.0,0.00018788,2]
[402100315,1768518640466,-3131.0,0.00018799,2]
[402100316,1768518640475,-151.2,0.000188,2]
[402100317,1768518640485,-151.2,0.000188,2]
[402100318,1768518640495,-3131.0,0.0001883,2]
[402100319,1768518640505,-3131.0,0.00018883,2]
[402100320,1768518640514,-3131.0,0.00018944,2]
[402100321,1768518640523,-3131.0,0.00018951,2]
[402100322,1768518640533,-3131.0,0.00018985,2]
[402100323,1768518640542,-459.81865092,0.00019,2]
[402100324,1768518640552,-3131.0,0.00019038,2]
[402100325,1768518640561,-1159.28681753,0.00019039,2]
[402100326,1768518640570,-587.0,0.00019044,2]
[402100327,1768518640579,-465.2113838,0.00019068,2]
[402100328,1768518640588,-500.0,0.00019068,2]
[402100329,1768518640598,-2351.0,0.00019235,2]
[402100330,1768518640607,-1959.9,0.00019345,2]
[402100331,1768518640617,-664.0,0.00019619,2]
[402100332,1768518640626,-151.2,0.00019867,2]
[402100333,1768518640636,-174.61919141,0.00019877,2]
[402100334,1768518640645,-578.20924308,0.00019877,2]
[402100335,1768518640654,-2500.0,0.00019877,2]
[402100337,1768518640663,-500.0,0.00019877,2]
[402100339,1768518640672,-2500.0,0.00019877,2]
[402100341,1768518640682,-500.0,0.00019877,2]
[402100342,1768518640691,-2500.0,0.00019877,2]
[402100344,1768518640700,-500.0,0.00019877,2]
[402100347,1768518640710,-3000.0,0.00019877,2]
[402100348,1768518640719,-2500.0,0.00019877,2]
[402100351,1768518640729,-500.0,0.00019877,2]
[402100353,1768518640738,-2500.0,0.00019877,2]
[402100355,1768518640748,-3000.0,0.00019877,2]
[402100356,1768518640757,-500.0,0.00019877,2]
[402100358,1768518640766,-2500.0,0.00019877,2]
[402100360,1768518640775,-3000.0,0.00019877,2]
[402100363,1768518640784,-500.0,0.00019877,2]
[402100365,1768518640794,-2500.0,0.00019877,2]
[402100366,1768518640803,-3000.0,0.00019877,2]
[402100369,1768518640812,-500.0,0.00019877,2]
[402100370,1768518640822,-2500.0,0.00019877,2]
[402100372,1768518640831,-3000.0,0.00019877,2]
[402100376,1768518640841,-500.0,0.00019877,2]
[402100379,1768518640850,-2500.0,0.00019877,2]
[402100381,1768518640859,-3000.0,0.00019877,2]
[402100383,1768518640868,-500.0,0.00019877,2]
[402100385,1768518640877,-500.0,0.00019877,2]
[402100387,1768518640886,-2500.0,0.00019877,2]
[402100389,1768518640895,-3000.0,0.00019877,2]
[402100391,1768518640904,-589.66560827,0.00019877,2]
[402100393,1768518640913,-500.0,0.00019877,2]
[402100395,1768518640923,-2500.0,0.00019877,2]
[402100397,1768518640932,-3000.0,0.00019877,2]
[402100399,1768518640942,-500.0,0.00019877,2]
[402100401,1768518640951,-500.0,0.00019877,2]
[402100403,1768518640961,-500.0,0.00019877,2]
[402100405,1768518640973,-3000.0,0.00019877,2]
[402100407,1768518640982,-500.0,0.00019877,2]
[402100409,1768518640992,-500.0,0.00019877,2]
[402100411,1768518641002,-500.0,0.00019877,2]
[402100413,1768518641011,-3000.0,0.00019877,2]
[402100415,1768518641020,-500.0,0.00019877,2]
[402100417,1768518641029,-500.0,0.00019877,2]
[402100419,1768518641040,-500.0,0.00019877,2]
[402100421,1768518641049,-3000.0,0.00019877,2]
[402100423,1768518641058,-500.0,0.00019877,2]
[402100425,1768518641067,-500.0,0.00019877,2]
[402100427,1768518641077,-500.0,0.00019877,2]
[402100438,1768518641301,-500.0,0.00019877,2]
[402100439,1768518641349,-500.0,0.00019877,2]
[402100440,1768518641359,-500.0,0.00019877,2]
[402100441,1768518641369,-500.0,0.00019877,2]
[402100442,1768518641378,-500.0,0.00019877,2]
[402100444,1768518641387,-574.12855637,0.00019877,2]
[402100445,1768518641396,-500.0,0.00019877,2]
[402100446,1768518641405,-500.0,0.00019877,2]
[402100447,1768518641415,-500.0,0.00019877,2]
[402100448,1768518641424,-500.0,0.00019877,2]
[402100449,1768518641433,-500.0,0.00019877,2]
[402100450,1768518641442,-500.0,0.00019877,2]
[402100451,1768518641452,-500.0,0.00019877,2]
[402100452,1768518641461,-500.0,0.00019877,2]
[402100453,1768518641471,-500.0,0.00019877,2]
[402100454,1768518641480,-500.0,0.00019877,2]
[402100455,1768518641489,-464.19143741,0.00019877,2]
[402100456,1768518641499,-500.0,0.00019877,2]
[402100457,1768518641508,-500.0,0.00019877,2]
[402100458,1768518641517,-1056.37014812,0.00019877,2]
[402100459,1768518641527,-3000.0,0.00019877,2]
[402100460,1768518641536,-3000.0,0.00019877,2]
[402100461,1768518641546,-3000.0,0.00019877,2]
[402100462,1768518641555,-3000.0,0.00019877,2]
[402100463,1768518641564,-3000.0,0.00019877,2]
[402100464,1768518641574,-3000.0,0.00019877,2]
[402100465,1768518641583,-2000.0,0.00019877,2]
[402100466,1768518641592,-3000.0,0.00019877,2]
[402100467,1768518641602,-2000.0,0.00019877,2]
[402100468,1768518641611,-3000.0,0.00019877,2]
[402100469,1768518641620,-2000.0,0.00019877,2]
[402100470,1768518641630,-3000.0,0.00019877,2]
[402100471,1768518641639,-2000.0,0.00019877,2]
[402100472,1768518641648,-3000.0,0.00019877,2]
[402100473,1768518641657,-2000.0,0.00019877,2]
[402100474,1768518641667,-151.0,0.00019877,2]
[402100475,1768518641676,-3000.0,0.00019877,2]
[402100476,1768518641685,-2000.0,0.00019877,2]
[402100477,1768518641694,-2000.0,0.00019877,2]
[402100478,1768518641703,-2000.0,0.00019877,2]
[402100479,1768518641713,-2000.0,0.00019877,2]
[402100480,1768518641722,-2000.0,0.00019877,2]
[402100481,1768518641731,-2000.0,0.00019877,2]
[402100482,1768518641741,-620.0,0.00019877,2]
[402100483,1768518641750,-322.6107,0.00019877,2]
[402100484,1768518641760,-721.12765535,0.00019877,2]
[402100485,1768518641770,-398.26454113,0.00020028,2]
[402100486,1768518641779,-1600.0,0.0002029,2]
[402100487,1768518641789,-181.08010149,0.00020425,2]
[402100488,1768518641798,-595.37131296,0.00020425,2]
[402100489,1768518641807,-151.0,0.00020425,2]
[402100490,1768518641816,-13073.1020981,0.00020465,2]
[402100491,1768518641826,-5279.10898111,0.00020465,2]
[402100492,1768518641836,-454.6,0.00020601,2]
[402100493,1768518641845,-823.0,0.00020823,2]
[402100494,1768518641855,-187.78006525,0.00020973,2]
[402100495,1768518641865,-617.40005154,0.00020973,2]
[402100496,1768518641875,-151.0,0.00020973,2]
[402100497,1768518641886,-250.0,0.00021042,2]
[402100498,1768518641897,-3292.0,0.00021137,2]
[402100499,1768518641908,-642.94,0.00021246,2]
[402100500,1768518641918,-334.5472959,0.00021246,2]
[402100501,1768518641928,-194.72792766,0.00021521,2]
[402100502,1768518641937,-640.24385345,0.00021521,2]
[402100503,1768518641947,-151.0,0.00021521,2]
[402100504,1768518641957,-201.93286099,0.00022069,2]
[402100505,1768518641969,-663.93287602,0.00022069,2]
[402100506,1768518641979,-248.38210406,0.00022069,2]
[402100507,1768518641989,-3456.84,0.00022162,2]
[402100508,1768518641999,-1600.0,0.00022545,2]
[402100509,1768518642009,-666.72878,0.00022615,2]
[402100511,1768518642019,-346.92554586,0.00022615,2]
[402100512,1768518642028,-599.60298508,0.00022616,2]
[402100513,1768518642041,-747.80937859,0.00022616,2]
[402100514,1768518642050,-209.40437684,0.00022617,2]
[402100515,1768518642060,-688.49839244,0.00022617,2]
[402100517,1768518642070,-13073.1020981,0.00022733,2]
[402100518,1768518642079,-5279.10898111,0.00022733,2]